fUSD/lending_fUSD_20240619
["ID","MTS","AMOUNT","RATE_DAILY","PERIOD"]
[329903193,1718811033032,-1000.0,0.00012345,2]
[329903194,1718811033042,-150.0,0.00012397,2]
[329903195,1718811033051,-9367.47807645,0.000124,2]
[329903202,1718811038630,-6287.21120919,0.000124,2]
[329903204,1718811038645,-304.6,0.000124,2]
[329903223,1718811041252,-2096.68538725,0.000124,2]
[329903224,1718811041263,-640.9431707,0.000124,2]
[329903225,1718811041275,-385.66261705,0.000124,2]
[329903226,1718811041286,-2676.0766825,0.000124,2]
[329903227,1718811041298,-1918.44999999,0.000124,2]
[329903228,1718811041309,-222.89285687,0.000124,2]
[329903229,1718811041319,-250.0,0.00012408,2]
[329903230,1718811041328,-150.99,0.00012408,2]
[329903231,1718811041338,-20.64130711,0.00012459,2]
[329903232,1718811041350,-229.35869289,0.00012459,2]
[329903233,1718811041360,-146.38630711,0.00012459,2]
[329903234,1718811041373,-23.36369289,0.00012459,2]
[329903235,1718811041382,-881.25,0.00012493,2]
[329903236,1718811041391,-491.86,0.000125,2]
[329903237,1718811041401,-2272.22,0.00012509,2]
[329903238,1718811041411,-171.93,0.00012717,2]
[329903239,1718811041420,-761.36,0.00012762,2]
[329903240,1718811041431,-499.99,0.0001278,2]
[329903241,1718811041441,-1064.07481464,0.00012902,2]
[329903242,1718811041450,-621.24873811,0.00012926,2]
[329903243,1718811041465,-100.50126189,0.00012926,2]
[329903245,1718811041475,-200.70873811,0.00013424,2]
[329903246,1718811041488,-923.7242085,0.00013424,2]
[329903248,1718811041497,-157.41483326,0.00013498,2]
[329903250,1718811041506,-1500.0,0.000135,2]
[329903251,1718811041515,-1500.0,0.000135,2]
[329903252,1718811041526,-1500.0,0.000135,2]
[329903253,1718811041535,-1500.0,0.000135,2]
[329903254,1718811041544,-1500.0,0.000135,2]
[329903255,1718811041555,-1500.0,0.000135,2]
[329903256,1718811041565,-1500.0,0.000135,2]
[329903257,1718811041575,-1500.0,0.000135,2]
[329903258,1718811041583,-1695.48,0.000135,2]
[329903259,1718811041595,-1500.0,0.000135,2]
[329903260,1718811041604,-587.0,0.00013518,2]
[329903261,1718811041613,-500.0,0.00013587,2]
[329903262,1718811041624,-500.0,0.00013588,2]
[329903263,1718811041633,-176.60365254,0.00013598,2]
[329903264,1718811041643,-7898.25148561,0.00013598,2]
[329903265,1718811041653,-182.04870981,0.00013598,2]
[329903267,1718811041662,-178.16282074,0.00013598,2]
[329903269,1718811041673,-329.20308111,0.00013598,2]
[329903271,1718811041684,-5133.203,0.00013598,2]
[329903273,1718811041694,-15389.3223,0.00013598,2]
[329903275,1718811041703,-157.41483326,0.00013599,2]
[329903277,1718811041712,-1000.0,0.000136,2]
[329903279,1718811041722,-358.4366146,0.00013684,2]
[329903281,1718811041732,-486.6586298,0.00013687,2]
[329903283,1718811041742,-2153.6266342,0.00013687,2]
[329903285,1718811041751,-32032.1133033,0.00013687,2]
[329903287,1718811041760,-5010.7319377,0.00013687,2]
[329903289,1718811041769,-179.98125638,0.00013688,2]
[329903291,1718811041778,-195.79238693,0.00013696,2]
[329903293,1718811041788,-1986.14702219,0.00013696,2]
[329903295,1718811041797,-299.44576056,0.00013696,2]
[329903297,1718811041807,-728.39966307,0.00013696,2]
[329903299,1718811041816,-186.08972881,0.00013696,2]
[329903301,1718811041826,-199.8667487,0.00013696,2]
[329903303,1718811041835,-155.0,0.00013696,2]
[329903305,1718811041844,-155.0,0.00013696,2]
[329903307,1718811041853,-3329.64588364,0.00013696,2]
[329903309,1718811041862,-2496.14472866,0.00013696,2]
[329903311,1718811041871,-157.51406348,0.00013696,2]
[329903313,1718811041882,-159.18905416,0.00013696,2]
[329903315,1718811041891,-688.89348887,0.00013696,2]
[329903316,1718811041900,-400.0,0.00013696,2]
[329903318,1718811041909,-155.0,0.00013696,2]
[329903320,1718811041919,-873.16381455,0.00013696,2]
[329903322,1718811041928,-157.31344201,0.00013696,2]
[329903324,1718811041938,-217.36110672,0.00013696,2]
[329903326,1718811041948,-407.05469868,0.00013696,2]
[329903328,1718811041958,-526.90325593,0.00013696,2]
[329903330,1718811041967,-155.31066747,0.00013696,2]
[329903333,1718811041977,-471.87674079,0.00013696,2]
[329903334,1718811041986,-286.30073796,0.00013696,2]
[329903337,1718811041997,-202.15629901,0.00013696,2]
[329903339,1718811042007,-626.45669853,0.00013696,2]
[329903341,1718811042016,-1488.02945496,0.00013696,2]
[329903343,1718811042026,-493.44685405,0.00013696,2]
[329903345,1718811042035,-2401.06300248,0.00013696,2]
[329903347,1718811042045,-260.07217535,0.00013696,2]
[329903349,1718811042054,-782.15347108,0.00013697,2]
[329903351,1718811042063,-209.23301289,0.00013697,2]
[329903353,1718811042073,-5903.55757461,0.00013697,2]
[329903355,1718811042083,-507.0,0.00013698,2]
[329903357,1718811042092,-24581.97136029,0.00013698,2]
[329903394,1718811043891,-1070.68609688,0.00013698,2]
[329903397,1718811043903,-346.11167018,0.00013698,2]
[329903400,1718811043914,-725.77704884,0.00013698,2]
[329903403,1718811043926,-17687.31061078,0.00013698,2]
[329903405,1718811043937,-2000.0,0.00013698,2]
[329903407,1718811043945,-200.0,0.00013698,2]
[329903409,1718811043954,-500.0,0.00013698,2]
[329903411,1718811043964,-500.0,0.00013698,2]
[329903413,1718811043974,-500.0,0.00013698,2]
[329903415,1718811043983,-317.7986197,0.00013698,2]
[329903417,1718811043993,-500.0,0.00013698,2]
[329903418,1718811044003,-500.0,0.00013698,2]
[329903420,1718811044014,-500.0,0.00013698,2]
[329903422,1718811044024,-500.0,0.00013698,2]
[329903423,1718811044034,-500.0,0.00013698,2]
[329903425,1718811044044,-291.256126,0.00013698,2]
[329903427,1718811044053,-500.48,0.00013698,2]
[329903429,1718811044063,-500.0,0.00013698,2]
[329903430,1718811044072,-500.0,0.00013698,2]
[329903432,1718811044083,-500.0,0.00013698,2]
[329903434,1718811044092,-373.40867852,0.00013698,2]
[329903436,1718811044102,-500.0,0.00013698,2]
[329903437,1718811044111,-500.0,0.00013698,2]
[329903439,1718811044121,-500.0,0.00013698,2]
[329903441,1718811044131,-500.0,0.00013698,2]
[329903443,1718811044140,-500.0,0.00013698,2]
[329903445,1718811044150,-503.83,0.00013698,2]
[329903446,1718811044159,-500.0,0.00013698,2]
[329903448,1718811044168,-616.87,0.00013698,2]
[329903450,1718811044177,-500.0,0.00013698,2]
[329903451,1718811044188,-500.0,0.00013698,2]
[329903452,1718811044198,-500.0,0.00013698,2]
[329903453,1718811044208,-500.0,0.00013698,2]
[329903454,1718811044218,-784.28,0.00013698,2]
[329903455,1718811044227,-500.0,0.00013698,2]
[329903456,1718811044236,-500.0,0.00013698,2]
[329903457,1718811044245,-500.0,0.00013698,2]
[329903459,1718811044256,-500.0,0.00013698,2]
[329903461,1718811044265,-489.39014488,0.00013698,2]
[329903463,1718811044275,-500.0,0.00013698,2]
[329903465,1718811044284,-500.0,0.00013698,2]
[329903467,1718811044295,-500.0,0.00013698,2]
[329903469,1718811044305,-724.97,0.00013698,2]
[329903471,1718811044314,-500.0,0.00013698,2]
[329903473,1718811044324,-500.0,0.00013698,2]
[329903475,1718811044333,-552.86640443,0.00013698,2]
[329903477,1718811044344,-500.0,0.00013698,2]
[329903479,1718811044353,-500.0,0.00013698,2]
[329903481,1718811044362,-500.0,0.00013698,2]
[329903483,1718811044372,-500.0,0.00013698,2]
[329903485,1718811044382,-500.0,0.00013698,2]
[329903487,1718811044391,-500.0,0.00013698,2]
[329903489,1718811044401,-500.0,0.00013698,2]
[329903491,1718811044411,-500.0,0.00013698,2]
[329903493,1718811044421,-500.0,0.00013698,2]
[329903495,1718811044430,-201.62936954,0.00013698,2]
[329903497,1718811044441,-500.0,0.00013698,2]
[329903499,1718811044450,-597.06,0.00013698,2]
[329903501,1718811044459,-500.0,0.00013698,2]
[329903503,1718811044470,-692.46,0.00013698,2]
[329903505,1718811044480,-453.49709307,0.00013698,2]
[329903507,1718811044490,-500.0,0.00013698,2]
[329903509,1718811044500,-500.0,0.00013698,2]
[329903511,1718811044510,-500.0,0.00013698,2]
[329903513,1718811044520,-500.0,0.00013698,2]
[329903515,1718811044530,-500.0,0.00013698,2]
[329903517,1718811044539,-500.0,0.00013698,2]
[329903520,1718811044549,-500.0,0.00013698,2]
[329903522,1718811044564,-500.0,0.00013698,2]
[329903525,1718811044575,-500.0,0.00013698,2]
[329903526,1718811044584,-1588.86,0.00013698,2]
[329903528,1718811044594,-500.0,0.00013698,2]
[329903531,1718811044605,-500.0,0.00013698,2]
[329903533,1718811044615,-878.48,0.00013698,2]
[329903535,1718811044625,-519.51,0.00013698,2]
[329903537,1718811044637,-500.0,0.00013698,2]
[329903539,1718811044649,-296.20867588,0.00013698,2]
[329903541,1718811044659,-698.86,0.00013698,2]
[329903543,1718811044669,-500.0,0.00013698,2]
[329903544,1718811044679,-1659.69,0.00013698,2]
[329903545,1718811044691,-261.3887204,0.00013698,2]
[329903546,1718811044701,-500.0,0.00013698,2]
[329903547,1718811044710,-500.0,0.00013698,2]
[329903548,1718811044720,-743.17,0.00013698,2]
[329903549,1718811044731,-500.0,0.00013698,2]
[329903550,1718811044741,-1618.44,0.00013698,2]
[329903551,1718811044752,-500.0,0.00013698,2]
[329903552,1718811044762,-692.13,0.00013698,2]
[329903553,1718811044773,-500.0,0.00013698,2]
[329903554,1718811044784,-2000.0,0.00013698,2]
[329903555,1718811044794,-500.0,0.00013698,2]
[329903556,1718811044804,-547.07,0.00013698,2]
[329903557,1718811044814,-200.0,0.00013698,2]
[329903558,1718811044825,-500.0,0.00013698,2]
[329903559,1718811044836,-500.0,0.00013698,2]
[329903560,1718811044845,-500.0,0.00013698,2]
[329903561,1718811044855,-500.0,0.00013698,2]
[329903562,1718811044865,-500.0,0.00013698,2]
[329903563,1718811044875,-644.38,0.00013698,2]
[329903564,1718811044885,-500.0,0.00013698,2]
[329903565,1718811044895,-500.0,0.00013698,2]
[329903566,1718811044904,-520.92,0.00013698,2]
[329903567,1718811044914,-766.06,0.00013698,2]
[329903568,1718811044924,-625.26,0.00013698,2]
[329903569,1718811044935,-500.0,0.00013698,2]
[329903570,1718811044944,-1169.66,0.00013698,2]
[329903571,1718811044953,-500.0,0.00013698,2]
[329903572,1718811044963,-688.81,0.00013698,2]
[329903573,1718811044972,-151.0,0.00013698,2]
[329903574,1718811044982,-151.0,0.00013698,2]
[329903575,1718811044991,-500.0,0.00013698,2]
[329903576,1718811045001,-500.0,0.00013698,2]
[329903577,1718811045010,-500.0,0.00013698,2]
[329903578,1718811045020,-641.28,0.00013698,2]
[329903579,1718811045029,-500.0,0.00013698,2]
[329903580,1718811045039,-500.0,0.00013698,2]
[329903581,1718811045049,-500.0,0.00013698,2]
[329903582,1718811045058,-500.0,0.00013698,2]
[329903583,1718811045067,-500.0,0.00013698,2]
[329903584,1718811045076,-1052.5,0.00013698,2]
[329903585,1718811045086,-500.0,0.00013698,2]
[329903586,1718811045095,-500.0,0.00013698,2]
[329903587,1718811045105,-624.9,0.00013698,2]
[329903588,1718811045114,-1454.6,0.00013698,2]
[329903589,1718811045123,-1465.98,0.00013698,2]
[329903590,1718811045133,-1311.95,0.00013698,2]
[329903591,1718811045143,-871.71,0.00013698,2]
[329903592,1718811045152,-537.82,0.00013698,2]
[329903593,1718811045161,-651.33,0.00013698,2]
[329903594,1718811045171,-500.0,0.00013698,2]
[329903595,1718811045180,-500.0,0.00013698,2]
[329903596,1718811045190,-1791.13,0.00013698,2]
[329903597,1718811045199,-500.0,0.00013698,2]
[329903598,1718811045208,-500.0,0.00013698,2]
[329903599,1718811045217,-500.0,0.00013698,2]
[329903600,1718811045227,-1274.72,0.00013698,2]
[329903601,1718811045237,-628.22,0.00013698,2]
[329903602,1718811045246,-705.09,0.00013698,2]
[329903603,1718811045255,-661.84,0.00013698,2]
[329903604,1718811045264,-724.32,0.00013698,2]
[329903605,1718811045274,-500.0,0.00013698,2]
[329903606,1718811045284,-711.2,0.00013698,2]
[329903607,1718811045293,-500.0,0.00013698,2]
[329903608,1718811045302,-1690.07,0.00013698,2]
[329903609,1718811045311,-849.87,0.00013698,2]
[329903610,1718811045321,-736.29,0.00013698,2]
[329903611,1718811045331,-544.25,0.00013698,2]
[329903612,1718811045340,-634.25,0.00013698,2]
[329903613,1718811045349,-700.74,0.00013698,2]
[329903614,1718811045358,-1028.11,0.00013698,2]
[329903615,1718811045368,-999.58,0.00013698,2]
[329903616,1718811045377,-659.96,0.00013698,2]
[329903617,1718811045386,-723.38,0.00013698,2]
[329903618,1718811045396,-1269.18,0.00013698,2]
[329903619,1718811045406,-753.72,0.00013698,2]
[329903620,1718811045415,-730.23,0.00013698,2]
[329903621,1718811045425,-547.47,0.00013698,2]
[329903622,1718811045436,-2088.47,0.00013698,2]
[329903623,1718811045445,-500.0,0.00013698,2]
[329903624,1718811045454,-500.0,0.00013698,2]
[329903625,1718811045464,-500.0,0.00013698,2]
[329903626,1718811045473,-500.0,0.00013698,2]
[329903627,1718811045482,-672.5,0.00013698,2]
[329903628,1718811045492,-500.0,0.00013698,2]
[329903629,1718811045501,-913.76,0.00013698,2]
[329903630,1718811045511,-500.0,0.00013698,2]
[329903631,1718811045520,-500.0,0.00013698,2]
[329903632,1718811045530,-1588.17,0.00013698,2]
[329903633,1718811045539,-613.03,0.00013698,2]
[329903634,1718811045549,-500.0,0.00013698,2]
[329903635,1718811045558,-811.72,0.00013698,2]
[329903636,1718811045572,-1388.42,0.00013698,2]
[329903637,1718811045581,-500.0,0.00013698,2]
[329903638,1718811045591,-960.36,0.00013698,2]
[329903639,1718811045600,-1176.43,0.00013698,2]
[329903640,1718811045611,-500.0,0.00013698,2]
[329903641,1718811045620,-650.91,0.00013698,2]
[329903642,1718811045630,-609.58,0.00013698,2]
[329903643,1718811045877,-500.0,0.00013698,2]
[329903644,1718811045888,-500.0,0.00013698,2]
[329903645,1718811045897,-1111.26,0.00013698,2]
[329903646,1718811045907,-665.22,0.00013698,2]
[329903647,1718811045918,-1123.99,0.00013698,2]
[329903648,1718811045928,-500.0,0.00013698,2]
[329903649,1718811045938,-500.0,0.00013698,2]
[329903650,1718811045948,-1392.23,0.00013698,2]
[329903651,1718811045957,-790.37,0.00013698,2]
[329903652,1718811045967,-543.97,0.00013698,2]
[329903653,1718811045976,-500.0,0.00013698,2]
[329903654,1718811045986,-658.93,0.00013698,2]
[329903655,1718811045994,-511.28,0.00013698,2]
[329903656,1718811046004,-794.6,0.00013698,2]
[329903657,1718811046014,-500.0,0.00013698,2]
[329903658,1718811046023,-583.95,0.00013698,2]
[329903659,1718811046032,-885.71,0.00013698,2]
[329903660,1718811046042,-500.0,0.00013698,2]
[329903661,1718811046051,-500.0,0.00013698,2]
[329903662,1718811046060,-520.29,0.00013698,2]
[329903663,1718811046070,-522.29,0.00013698,2]
[329903664,1718811046080,-500.0,0.00013698,2]
[329903665,1718811046089,-500.0,0.00013698,2]
[329903666,1718811046099,-615.08,0.00013698,2]
[329903667,1718811046109,-655.38,0.00013698,2]
[329903668,1718811046119,-1272.92,0.00013698,2]
[329903669,1718811046128,-500.0,0.00013698,2]
[329903670,1718811046138,-1238.03,0.00013698,2]
[329903671,1718811046147,-500.0,0.00013698,2]
[329903672,1718811046156,-1106.35,0.00013698,2]
[329903673,1718811046167,-500.0,0.00013698,2]
[329903674,1718811046176,-788.77,0.00013698,2]
[329903675,1718811046186,-500.0,0.00013698,2]
[329903676,1718811046195,-1437.52,0.00013698,2]
[329903677,1718811046204,-500.0,0.00013698,2]
[329903678,1718811046214,-500.0,0.00013698,2]
[329903679,1718811046223,-500.0,0.00013698,2]
[329903680,1718811046232,-601.57,0.00013698,2]
[329903681,1718811046242,-560.32,0.00013698,2]
[329903682,1718811046251,-644.57,0.00013698,2]
[329903683,1718811046261,-500.0,0.00013698,2]
[329903684,1718811046270,-1082.72,0.00013698,2]
[329903685,1718811046279,-1119.35,0.00013698,2]
[329903686,1718811046288,-543.76,0.00013698,2]
[329903687,1718811046297,-1026.61,0.00013698,2]
[329903688,1718811046307,-500.0,0.00013698,2]
[329903689,1718811046316,-500.0,0.00013698,2]
[329903690,1718811046326,-831.15,0.00013698,2]
[329903691,1718811046336,-500.0,0.00013698,2]
[329903692,1718811046345,-500.0,0.00013698,2]
[329903693,1718811046355,-500.0,0.00013698,2]
[329903694,1718811046364,-500.0,0.00013698,2]
[329903695,1718811046374,-1547.33,0.00013698,2]
[329903696,1718811046384,-829.48,0.00013698,2]
[329903697,1718811046393,-1200.3,0.00013698,2]
[329903698,1718811046402,-500.0,0.00013698,2]
[329903699,1718811046412,-500.0,0.00013698,2]
[329903700,1718811046421,-500.0,0.00013698,2]
[329903701,1718811046431,-500.0,0.00013698,2]
[329903702,1718811046441,-500.0,0.00013698,2]
[329903703,1718811046450,-1241.49,0.00013698,2]
[329903704,1718811046459,-548.52,0.00013698,2]
[329903705,1718811046469,-500.0,0.00013698,2]
[329903706,1718811046480,-1062.49,0.00013698,2]
[329903707,1718811046490,-956.34,0.00013698,2]
[329903708,1718811046500,-500.0,0.00013698,2]
[329903709,1718811046510,-500.0,0.00013698,2]
[329903710,1718811046521,-679.09,0.00013698,2]
[329903711,1718811046531,-651.93,0.00013698,2]
[329903712,1718811046541,-1265.79,0.00013698,2]
[329903713,1718811046551,-998.77,0.00013698,2]
[329903714,1718811046565,-500.0,0.00013698,2]
[329903715,1718811046576,-500.0,0.00013698,2]
[329903716,1718811046585,-546.95,0.00013698,2]
[329903717,1718811046595,-685.86,0.00013698,2]
[329903718,1718811046606,-608.71,0.00013698,2]
[329903719,1718811046616,-500.0,0.00013698,2]
[329903720,1718811046628,-500.0,0.00013698,2]
[329903722,1718811046638,-842.96,0.00013698,2]
[329903723,1718811046648,-500.0,0.00013698,2]
[329903724,1718811046658,-523.55,0.00013698,2]
[329903725,1718811046668,-500.0,0.00013698,2]
[329903726,1718811046678,-849.12,0.00013698,2]
[329903727,1718811046689,-500.0,0.00013698,2]
[329903728,1718811046699,-500.0,0.00013698,2]
[329903729,1718811046710,-786.08,0.00013698,2]
[329903730,1718811046721,-889.91,0.00013698,2]
[329903731,1718811046732,-1632.71,0.00013698,2]
[329903732,1718811046742,-500.0,0.00013698,2]
[329903733,1718811046753,-727.3,0.00013698,2]
[329903734,1718811046762,-1358.37,0.00013698,2]
[329903735,1718811046772,-1149.77,0.00013698,2]
[329903736,1718811046782,-500.0,0.00013698,2]
[329903737,1718811046792,-500.0,0.00013698,2]
[329903738,1718811046802,-840.68,0.00013698,2]
[329903739,1718811046812,-500.0,0.00013698,2]
[329903740,1718811046822,-1364.17,0.00013698,2]
[329903741,1718811046833,-500.0,0.00013698,2]
[329903742,1718811046843,-500.0,0.00013698,2]
[329903743,1718811046855,-151.0,0.00013698,2]
[329903744,1718811046868,-151.0,0.00013698,2]
[329903745,1718811046879,-151.0,0.00013698,2]
[329903746,1718811046888,-500.0,0.00013698,2]
[329903747,1718811046898,-588.65,0.00013698,2]
[329903748,1718811046908,-1250.36,0.00013698,2]
[329903749,1718811046917,-500.0,0.00013698,2]
[329903750,1718811046928,-500.0,0.00013698,2]
[329903751,1718811046938,-500.0,0.00013698,2]
[329903752,1718811046947,-831.65,0.00013698,2]
[329903753,1718811046956,-656.09,0.00013698,2]
[329903754,1718811046965,-561.33,0.00013698,2]
[329903755,1718811046976,-1236.58,0.00013698,2]
[329903756,1718811046986,-1336.36,0.00013698,2]
[329903757,1718811046996,-5.40430907,0.00013698,2]
[329903780,1718811047824,-1196.0,0.00013654,2]
[329903782,1718811047834,-537.26,0.00013654,2]
[329903784,1718811047845,-4170.29757461,0.00013697,2]
[329903787,1718811047856,-256.17539998,0.00013697,2]
[329903798,1718811056258,1500.0,0.00019484,30]
[329903799,1718811075582,200.7,0.00024,120]
[329903800,1718811151179,1422.89,0.00026,90]
[329903801,1718811241618,1500.0,0.00024,30]
[329903802,1718811295526,2000.0,0.00024,30]
[329903804,1718811354787,205.0,9.8e-05,2]
[329903805,1718811356989,403.88,0.00024,30]
[329903808,1718811409593,-171.92,0.00010123,2]
[329903809,1718811409614,-428.08,0.00010851,2]
[329903811,1718811438892,786.82326466,0.0002509,120]
[329903812,1718811441090,152.57297978,0.00015,120]
[329903813,1718811441311,5146.97303262,0.00015,120]
[329903814,1718811465450,-450.73212974,0.0001085,2]
[329903815,1718811465473,-362.20515079,0.00010851,2]
[329903816,1718811465499,-3923.89615025,0.00010852,2]
[329903817,1718811465523,-698.17,0.00010871,2]
[329903818,1718811468108,-150.0,0.00012299,2]
[329903819,1718811539959,-300.0,0.00012299,2]
[329903820,1718811592536,151.0,0.00020004,30]
[329903821,1718811640463,-339.10074979,0.00012297,2]
[329903822,1718811640492,-300.0,0.00012298,2]
[329903823,1718812011665,-450.73212974,0.00010625,2]
[329903824,1718812011687,-693.22,0.00010626,2]
[329903825,1718812011710,-300.0,0.00012298,2]
[329903826,1718812011733,-3178.84806234,0.00012299,2]
[329903865,1718812232460,-300.0,0.00012298,2]
[329903866,1718812232470,-868.55853331,0.00012299,2]
[329903867,1718812232541,-7028.89931554,0.00012299,2]
[329903868,1718812232552,-10937.47807645,0.00012299,2]
[329903869,1718812232615,-4496.71,0.00012299,2]
[329903877,1718812238321,-1847.30191632,0.00012299,2]
[329903878,1718812238528,-3643.19316488,0.00012299,2]
[329903879,1718812238542,-10516.18610828,0.00012299,2]
[329903880,1718812238551,-18755.02112423,0.000123,2]
[329903881,1718812238562,-49761.98861869,0.000123,2]
[329903890,1718812238781,-2955.22036203,0.000123,2]
[329903932,1718812240658,-272.78427646,0.000123,2]
[329903952,1718812243413,-82286.62578656,0.000123,2]
[329903954,1718812243423,-250.0,0.00012339,2]
[329903956,1718812243432,-200.0,0.00012416,2]
[329903958,1718812243441,-1574.4,0.00012466,2]
[329903961,1718812243451,-250.0,0.00012469,2]
[329903964,1718812243461,-150.0,0.00012512,2]
[329903966,1718812243471,-400.0,0.00012568,2]
[329903967,1718812243482,-21375.16563505,0.0001261,2]
[329903968,1718812243826,-2524.83436495,0.0001261,2]
[329903969,1718812243836,-200.0,0.00012658,2]
[329903970,1718812243845,-171.9,0.00012667,2]
[329903971,1718812243855,-154.77,0.00012667,2]
[329903972,1718812243864,-499.99,0.00012683,2]
[329903973,1718812243874,-693.22,0.0001289,2]
[329903974,1718812243884,-986.49788718,0.00013424,2]
[329903975,1718812243895,-44.10245084,0.00013424,2]
[329903976,1718812243905,-420.0,0.00013496,2]
[329903977,1718812243914,-44.18442478,0.000135,2]
[329903978,1718812243927,-15341.11582822,0.000135,2]
[329903979,1718812243936,-417.85,0.000135,2]
[329903981,1718812243948,-211.717588,0.0001351,2]
[329903983,1718812243958,-632.730368,0.0001351,2]
[329903985,1718812243968,-1034.178901,0.0001351,2]
[329903986,1718812243978,-180.145643,0.0001351,2]
[329903987,1718812243987,-200.739042,0.0001351,2]
[329903988,1718812243999,-223.221139,0.0001351,2]
[329903989,1718812244008,-500.0,0.00013588,2]
[329903990,1718812244018,-219.94,0.00013589,2]
[329903991,1718812244027,-157.41483326,0.00013596,2]
[329903992,1718812244040,-176.60365253,0.00013598,2]
[329903993,1718812244050,-8373.16661534,0.00013598,2]
[329903994,1718812244059,-169.75322858,0.00013598,2]
[329903995,1718812244069,-326.59653271,0.00013598,2]
[329903996,1718812244079,-171.27673611,0.00013598,2]
[329903997,1718812244088,-1000.0,0.00013598,2]
[329903998,1718812244097,-500.0,0.00013598,2]
[329903999,1718812244107,-4594.1367,0.00013598,2]
[329904000,1718812244116,-7500.0,0.00013598,2]
[329904001,1718812244125,-1000.0,0.000136,2]
[329904002,1718812244135,-1000.0,0.000136,2]
[329904003,1718812244145,-632.730368,0.00013678,2]
[329904004,1718812244154,-1034.178901,0.00013678,2]
[329904005,1718812244163,-4617.77145204,0.00013684,2]
[329904006,1718812244173,-1200.380201,0.00013687,2]
[329904007,1718812244182,-436.9534786,0.00013687,2]
[329904008,1718812244192,-990.8590546,0.00013687,2]
[329904009,1718812244201,-1277.082245,0.00013687,2]
[329904010,1718812244211,-16599.2008953,0.00013687,2]
[329904011,1718812244220,-2762.5062641,0.00013687,2]
[329904012,1718812244230,-179.98125638,0.00013688,2]
[329904013,1718812244239,-285.86312721,0.00013696,2]
[329904014,1718812244249,-2370.8826794,0.00013696,2]
[329904015,1718812244259,-155.26088297,0.00013696,2]
[329904016,1718812244268,-3103.23413009,0.00013696,2]
[329904017,1718812244277,-532.14539917,0.00013696,2]
[329904018,1718812244287,-1120.28198585,0.00013696,2]
[329904019,1718812244300,-3057.99278899,0.00013696,2]
[329904020,1718812244309,-646.04365935,0.00013696,2]
[329904021,1718812244319,-7543.72254498,0.00013696,2]
[329904022,1718812244328,-169.96220591,0.00013696,2]
[329904023,1718812244338,-201.62936954,0.00013696,2]
[329904024,1718812244348,-489.26451093,0.00013696,2]
[329904025,1718812244358,-365.94464006,0.00013696,2]
[329904026,1718812244368,-943.57355031,0.00013696,2]
[329904027,1718812244378,-1069.16736743,0.00013696,2]
[329904028,1718812244387,-1286.06929216,0.00013696,2]
[329904029,1718812244397,-526.1677749,0.00013696,2]
[329904030,1718812244407,-1278.9757457,0.00013696,2]
[329904031,1718812244416,-442.47162944,0.00013696,2]
[329904032,1718812244426,-291.256126,0.00013696,2]
[329904033,1718812244435,-450.62845181,0.00013696,2]
[329904034,1718812244444,-159.12114295,0.00013696,2]
[329904035,1718812244453,-499.40340335,0.00013696,2]
[329904036,1718812244463,-209.31609262,0.00013697,2]
[329904037,1718812244472,-5905.95140644,0.00013697,2]
[329904038,1718812244481,-13863.77886758,0.00013697,2]